Cogmind - Beta 15 @@@ ROGUE MODE // 2025.06.30 @ 03:40:54 Player: Florist Result: Destroyed self with Mini Grenade Launcher Performance ------------- Evolutions (1) 500 Regions Visited (3) 600 Robots Destroyed (56) 280 Value Destroyed (887) 887 Prototype IDs (0) 0 Alien Tech Used (0) 0 Bonus (0) 0 TOTAL SCORE: 2267 Bonus ------- None Cogmind --------- Core Integrity 0/400 Matter 103/300 Energy 100/100 System Corruption 0% Temperature Cool (0) Movement Core (1350) Ox26 Location -9/Materials Parts ------- > --- POWER (1) -------- (None) > --- PROPULSION (3) --- (None) > --- UTILITY (3) ------ Huge Storage Unit > --- WEAPON (2) ------- Mini Grenade Launcher > --- INVENTORY (25) --- Light Ion Engine Flight Unit Flight Unit Flight Unit Flight Unit Flight Unit Small Storage Unit Seismic Detector Improved Targeting Computer Medium Laser Medium Laser Autogun Autogun Autogun Autogun Autogun Autogun Autogun Plasma Cutter Heavy Hammer Peak State ------------ > --- POWER ------------ (None) > --- PROPULSION ------- Light Treads Light Treads > --- UTILITY ---------- Huge Storage Unit Seismic Detector > --- WEAPON ----------- Assault Rifle Assault Rifle > --- INVENTORY -------- Light Ion Engine Light Treads Wheel Wheel Flight Unit Flight Unit Flight Unit Small Storage Unit Seismic Detector Medium Laser Medium Laser Beam Cannon Assault Rifle Assault Rifle Assault Rifle Assault Rifle Autogun Autogun Autogun Autogun Autogun Autogun Autogun [Rating: 9] Favorites ----------- Power Light Ion Engine Engine Light Ion Engine Propulsion Light Treads Treads Light Treads Utility Seismic Detector Device Seismic Detector Storage Huge Storage Unit Weapon Assault Rifle Energy Gun Medium Laser Ballistic Gun Assault Rifle Launcher Mini Grenade Launcher Build | -11 -10 -10 -9 ------- Run | Yrd Mat Min Mat Slots Evolved 2 | . . . 2 Power . | . . . . Propulsion 1 | . . . 1 Utility 1 | . . . 1 Weapon . | . . . . Parts Attached 18 | 7 4 3 4 Power 1 | 1 . . . Engine 1 | 1 . . . Core . | . . . . Reactor . | . . . . Propulsion 3 | 2 . 1 . Treads 3 | 2 . 1 . Leg . | . . . . Wheel . | . . . . Hover . | . . . . Flight . | . . . . Utility 3 | 2 1 . . Device 1 | 1 . . . Storage 2 | 1 1 . . Processor . | . . . . Hackware . | . . . . Protection . | . . . . Artifact . | . . . . Weapon 11 | 2 3 2 4 Energy Gun 3 | 2 . . 1 Energy Cannon . | . . . . Ballistic Gun 7 | . 3 2 2 Ballistic Cannon . | . . . . Launcher 1 | . . . 1 Special Weapon . | . . . . Impact Weapon . | . . . . Slashing Weapon . | . . . . Piercing Weapon . | . . . . Special Melee Weapon . | . . . . Unidentified Prototypes . | . . . . Parts Lost 13 | . 1 3 9 Power 1 | . 1 . . Propulsion 3 | . . 1 2 Utility 1 | . . . 1 Weapon 8 | . . 2 6 Highest Loss Streak 9 | . 1 2 9 To Critical Strikes 1 | . . 1 . Average Backups 16 | 2 16 23 23 Power . | . 1 1 1 Propulsion 3 | 1 4 4 5 Utility 1 | . 1 2 2 Weapon 9 | . 9 14 13 Tool/Special . | . . . . Unused Backups 21 | . 4 . 17 Power 1 | . . . 1 Propulsion 7 | . 2 . 5 Utility 2 | . . . 2 Weapon 10 | . 2 . 8 Tool/Special 1 | . . . 1 Average Slot Usage (%) 86 | . 90 82 60 Engine 3 | . 4 . . Treads 26 | . 28 25 18 Device 13 | . 14 14 9 Storage 13 | . 14 14 11 Energy Gun 7 | . 8 . 2 Ballistic Gun 20 | . 19 28 19 Peak Build Rating 9 | 7 9 9 9 Average Rating 7 | 5 7 8 8 On Entrance 6 | . 7 9 9 Naked Turns . | . . . . Heaviest Build 88 | 13 88 85 85 Greatest Support 40 | 40 40 40 40 Greatest Overweight (x) 4 | . 2 4 2 Average Overweight (x) 1 | . 1 2 2 Largest Inventory Capacity 25 | 8 25 25 25 Average Capacity 22 | 7 24 25 25 Most Carried 25 | 3 25 25 25 Average Carried 16 | 2 16 23 23 Final Capacity 25 | 8 25 25 25 Final Carried 24 | 3 24 23 20 Class Distribution -------------------- 100% | Mutant Dominant Class ---------------- Mutant | -10/Materials Mutant | -10/Mines Mutant | -9/Materials Resources | -11 -10 -10 -9 ----------- Run | Yrd Mat Min Mat Matter Collected 705 | 260 306 139 . Remotely . | . . . . Salvage Created 1596 | 292 620 253 431 Parts 103 | 23 27 18 35 Haulers Intercepted 3 | . 2 . 1 Recyclers Shooed 4 | . 3 1 . Parts Field Recycled . | . . . . Retrieved Matter . | . . . . Parts Self-Destructed . | . . . . Prevented . | . . . . Kills | -11 -10 -10 -9 ------- Run | Yrd Mat Min Mat Combat Hostiles Destroyed 28 | . 10 8 10 Guns 23 | . 10 8 5 AOE 5 | . . . 5 Classes Destroyed 9 | 3 5 . 1 Worker 8 | 1 2 . 5 Tunneler 9 | 9 . . . Hauler 3 | . 2 . 1 Recycler 4 | 1 1 1 1 Operator 1 | . 1 . . Watcher 3 | . 2 . 1 Swarmer 13 | . 3 6 4 Grunt 12 | . 7 2 3 Sentry 3 | . . . 3 Best Kill Streak 17 | 2 4 5 17 Combat Bots Only 10 | . 4 5 10 Max Kills in Single Turn 4 | 1 2 2 4 Gunslinging 1 | . 1 1 . Exploded 2 | . . . 2 Melee . | . . . . Uniques/NPCs Destroyed . | . . . . Combat | -11 -10 -10 -9 -------- Run | Yrd Mat Min Mat Hostile Shots Fired 239 | . 65 45 129 Missed 64 | . 15 14 35 Hits 175 | . 50 31 94 Projectile 175 | . 50 31 94 Critical Strikes 5 | . 1 2 2 Damage Taken 2041 | . 525 311 1205 Core 583 | . 114 68 401 Absorbed by Shields . | . . . . Core Remaining (%) 63 | 100 . 27 . Volleys Fired 152 | 38 58 20 36 Largest 2 | 2 2 2 2 Hottest 100 | 100 100 40 100 Shots Fired 291 | 76 116 38 61 Gun 285 | 76 116 38 55 Cannon . | . . . . Launcher 6 | . . . 6 Special . | . . . . Kinetic 163 | . 87 38 38 Thermal 122 | 76 29 . 17 Explosive 6 | . . . 6 Electromagnetic . | . . . . Robot Hit Streak 15 | 4 10 9 15 Robot Miss Streak 5 | 4 5 4 4 Penetration Max . | . . . . Secondary Targets 6 | . 2 1 3 Max Gunslinging Chain 1 | . 1 1 1 Shots Hit Robots 186 | 37 76 26 47 Core Hits 77 | 12 30 13 22 Critical Kills 1 | . 1 . . Critical Parts Destroyed . | . . . . Critical Strikes 13 | 7 6 . . Burn 12 | 7 5 . . Destroy 1 | . 1 . . Melee Attacks . | . . . . Impact . | . . . . Slashing . | . . . . Piercing . | . . . . Sneak Attacks . | . . . . Combat Hostiles . | . . . . Follow-up Attacks . | . . . . Damage Inflicted 3197 | 475 1040 367 1315 Guns 2481 | 475 1040 367 599 Cannons . | . . . . Explosions 716 | . . . 716 Melee . | . . . . Ramming . | . . . . Kinetic 1557 | . 789 367 401 Thermal 924 | 475 251 . 198 Explosive 716 | . . . 716 Electromagnetic . | . . . . Impact . | . . . . Slashing . | . . . . Piercing . | . . . . Highest Corruption . | . . . . Average Corruption . | . . . . Corruption Purged . | . . . . Corruption Blocked . | . . . . Overload Shots . | . . . . Overflow Damage 88 | . . . 88 Projectiles . | . . . . Explosions 88 | . . . 88 Melee . | . . . . Knockbacks . | . . . . Impact . | . . . . Kinetic . | . . . . Secondary . | . . . . Self-Inflicted Damage 97 | . . . 97 Shots 2 | . . . 2 Rammed . | . . . . Targets Rammed . | . . . . Kicked . | . . . . Crushed . | . . . . Highest Temperature 312 | 312 135 15 225 Average Temperature 84 | 106 37 9 90 Received Heat Transfer 642 | . 201 87 354 Effects 1 | . . . 1 Energy Bleed 1 | . . . 1 Siege Activations . | . . . . Martial Activations . | . . . . Shielding Activations . | . . . . Robots Disrupted . | . . . . Combat Hostiles . | . . . . Robots Corrupted . | . . . . Combat Hostiles . | . . . . Parts Fried . | . . . . Impact Corruptions . | . . . . Robots Melted . | . . . . Combat Hostiles . | . . . . Parts Melted 7 | 4 3 . . Heat Transferred 3626 | 1924 1110 . 592 Parts Sabotaged . | . . . . Parts Stolen . | . . . . Parts Stripped . | . . . . Power Chain Reactions . | . . . . Alert | -11 -10 -10 -9 ------- Run | Yrd Mat Min Mat Maximum Alert Level 1 | . . . 1 Low Security (%) 99 | 100 100 100 99 Level 1 . | . . . . Level 2 . | . . . . Level 3 . | . . . . Level 4 . | . . . . Level 5 . | . . . . High Security . | . . . . Max Security . | . . . . Peak Influence 227 | 5 152 135 227 Initial 37 | . . . 37 Average 30 | 1 34 58 15 Influence Increases 942 | 55 369 195 323 Destroy 0b10 Robot/C 560 | . 200 160 200 Destroy 0b10 Robot/NC 140 | 55 40 5 40 Destroy Leader 122 | . 48 30 44 Successful Hack 15 | . 6 . 9 Disable Machine 15 | . 15 . . Destroy Structure 30 | . . . 30 Lose Combat Pursuer 60 | . 60 . . Influence Decreases 725 | 55 369 100 201 Entered New Map 58 | . . . 58 Time Decay 580 | 55 359 80 86 Lost Part 87 | . 10 20 57 Squads Dispatched 3 | . 1 . 2 Investigation . | . . . . Extermination . | . . . . Reinforcement 3 | . 1 . 2 Assault . | . . . . Garrison . | . . . . Intercept . | . . . . Searches Triggered . | . . . . Construction Impeded 1 | . . . 1 Haulers Reinforced . | . . . . Active Scanning Responses . | . . . . Cargo Convoy Interrupts . | . . . . Stealth | -11 -10 -10 -9 --------- Run | Yrd Mat Min Mat Distress Signals 1 | . . . 1 Communications Jammed . | . . . . Distress Signals . | . . . . Times Spotted 41 | . 18 8 15 Peak Tracking Total 9 | . 5 3 9 Tactical Retreats 3 | . 3 . . Traps | -11 -10 -10 -9 ------- Run | Yrd Mat Min Mat Traps Triggered . | . . . . Indirectly . | . . . . Trap Hack Attempts . | . . . . Triggered . | . . . . Disarmed . | . . . . Reprogrammed . | . . . . Reused . | . . . . Traps Extracted . | . . . . Installed . | . . . . Triggered . | . . . . Machines | -11 -10 -10 -9 ---------- Run | Yrd Mat Min Mat Machines Disabled 1 | . 1 . . Max in Single Turn 1 | . 1 . . Machines Repaired . | . . . . Machines Dismantled . | . . . . Machines Sabotaged . | . . . . Overloaded Fab Kills . | . . . . Hacking | -11 -10 -10 -9 --------- Run | Yrd Mat Min Mat Machines Accessed 9 | . 7 . 2 Terminals 7 | . 5 . 2 Fabricators . | . . . . Repair Stations . | . . . . Recycling Units 2 | . 2 . . Scanalyzers . | . . . . Garrison Access . | . . . . Total Hacks 23 | . 18 . 5 Successful 14 | . 11 . 3 Failed 9 | . 7 . 2 Catastrophic . | . . . . Database Lockouts . | . . . . Manual 18 | . 14 . 4 Terminals 20 | . 15 . 5 Fabricators . | . . . . Repair Stations . | . . . . Recycling Units 3 | . 3 . . Scanalyzers . | . . . . Garrison Access . | . . . . Terminal Hacks 4 | . 3 . 1 Terminal Index 1 | . 1 . . Locate Traps 2 | . 2 . . Transport Status 1 | . . . 1 Fabricator Hacks . | . . . . Repair Station Hacks . | . . . . Recycling Unit Hacks 2 | . 2 . . Retrieve Components 2 | . 2 . . Scanalyzer . | . . . . Garrison Access Hacks . | . . . . Unauthorized Hacks 8 | . 6 . 2 Terminals 7 | . 5 . 2 Track 2 | . 2 . . Botnet 4 | . 2 . 2 Operators 1 | . 1 . . Fabricators . | . . . . Repair Stations . | . . . . Recycling Units 1 | . 1 . . Reject 1 | . 1 . . Scanalyzers . | . . . . Garrison Access . | . . . . Data Cores Recovered . | . . . . Used . | . . . . Hacking Detections 6 | . 5 . 1 Full Trace Events . | . . . . Feedback Events . | . . . . Feedback Blocked . | . . . . Robot Schematics Acquired . | . . . . Robots Built . | . . . . Authchips . | . . . . Time . | . . . . Total Robot Build Rating . | . . . . Part Schematics Acquired . | . . . . Parts Built . | . . . . Authchips . | . . . . Time . | . . . . Total Part Build Rating . | . . . . Parts Repaired . | . . . . Time . | . . . . Parts Recycled . | . . . . Recycled Matter . | . . . . Retrieved Matter . | . . . . Retrieved Components 13 | . 13 . . Parts Scanalyzed . | . . . . Part Schematics Acquired . | . . . . Parts Damaged . | . . . . Bothacking | -11 -10 -10 -9 ------------ Run | Yrd Mat Min Mat Used RIF Installer . | . . . . Robots Hacked . | . . . . Non-combat . | . . . . Combat . | . . . . Robot Hacks Applied . | . . . . Relay Couplers Released . | . . . . Fabnet Peak Effective % . | . . . . Robots Rewired . | . . . . Allies Hacked . | . . . . Hacks Repelled . | . . . . Allies | -11 -10 -10 -9 -------- Run | Yrd Mat Min Mat Total Allies . | . . . . Largest Group . | . . . . Highest-Rated Group . | . . . . Highest-Rated Ally . | . . . . Total Orders . | . . . . Ally Attacks . | . . . . Total Damage . | . . . . Kills . | . . . . Allies Corrupted . | . . . . Allies Melted . | . . . . Intel | -11 -10 -10 -9 ------- Run | Yrd Mat Min Mat Active Infowar (turns) 3305 | 49 2734 251 271 Seismic 3305 | 49 2734 251 271 Robot Analysis Total . | . . . . Derelict Logs Recovered 1 | . . 1 . Drone Launches . | . . . . Drone Recoveries . | . . . . Exploration | -11 -10 -10 -9 ------------- Run | Yrd Mat Min Mat Turns Passed 3766 | 461 2734 251 320 Spaces Moved 1141 | 210 807 58 66 Core 3 | 3 . . . Treads 1138 | 207 807 58 66 Legs . | . . . . Wheels . | . . . . Hover . | . . . . Flight . | . . . . Fastest Speed 50 | 50 160 320 320 Average Speed 282 | 158 308 322 320 Slowest Speed 480 | 160 320 480 320 Overloaded Moves . | . . . . Propulsion Burnouts . | . . . . Robots Hopped . | . . . . Potential Cave-ins . | . . . . Cave-ins Triggered . | . . . . Exploration Rate (%) 33 | 10 97 13 12 Regions Visited 3 Branch Regions 1 Pre-discovered Areas . | . . . . Known Exits Taken . | . . . . Unknown Exits Taken 3 | 1 1 1 . Scrap Searched . | . . . . Spaces Dug . | . . . . Terrain Destroyed 42 | . . . 42 Melee . | . . . . Projectile . | . . . . AOE 42 | . . . 42 Terrain Rammed . | . . . . Walls Destroyed . | . . . . Machines Disabled . | . . . . Actions | -11 -10 -10 -9 --------- Run | Yrd Mat Min Mat Total 1398 | 259 937 86 116 Wait 53 | 2 41 4 6 Move 1138 | 209 806 57 66 Hop . | . . . . Pick Up 31 | 3 24 2 2 Fast Attach 7 | 7 . . . Attach 8 | . . 3 5 Detach . | . . . . Swap 5 | . 4 . 1 Drop 4 | . 4 . . Fire 152 | 38 58 20 36 Melee . | . . . . Ram . | . . . . Kick . | . . . . Crush . | . . . . Escape Stasis . | . . . . Rewire . | . . . . Trap . | . . . . Miscellaneous . | . . . . Route ------- -11/Scrapyard -10/Materials (discovered 5 exits: *Mat x3 / [*Min x2]) -10/Mines -9/Materials History --------- Turn | Location | Event 57 | -11/Scrapyard | Discovered new exit (range 14) 462 | -11/Scrapyard | Entered Materials 463 | -10/Materials | Build established: Mutant 463 | -10/Materials | Met a group of wandering Federalists 654 | -10/Materials | Discovered new exit (range 8) 728 | -10/Materials | Discovered new exit (range 8) 894 | -10/Materials | Discovered new exit (range 11) 2332 | -10/Materials | Discovered new exit (range 6) 3077 | -10/Materials | Discovered new exit (range 5) 3196 | -10/Materials | Entered Mines 3260 | -10/Mines | Learned Materials terminal intel 3325 | -10/Mines | Core integrity fell below 50% 3393 | -10/Mines | Discovered new exit (range 8) 3447 | -10/Mines | Entered Materials 3447 | -9/Materials | Evolved 2 slots: Propulsion x1, Utility x1 3448 | -9/Materials | Loaded intel: 12 terminal locations 3719 | -9/Materials | Core integrity fell below 50% 3763 | -9/Materials | Core integrity fell below 20% 3767 | -9/Materials | Destroyed self with Mini Grenade Launcher Last Messages --------------- 03757_ Destroyed Lgt. Ion Engine. 03757_ K-01 Serf destroyed. 03757_ Destroyed Hover Unit. 03759_ K-01 Serf destroyed. 03759_ W-16 Scout destroyed. 03761_ K-01 Serf destroyed. 03763_ The unstable cave ceiling collapses. 03763_ Y-45 Defender destroyed. 03763_ K-01 Serf collects debris. 03765_ Destroyed Flight Unit. 03765_ S-10 Pest destroyed. 03765_ Destroyed Flight Unit. 03765_ S-10 Pest destroyed. 03765_ Autogun destroyed. 03765_ Destroyed Autogun. 03765_ K-01 Serf destroyed. 03765_ ALERT: Construction progress impeded, dispatching reinforcements to local area. 03767_ Destroyed Flight Unit. 03767_ Destroyed Lgt. Ion Engine. Map ----- +----------------------------------------------------+ | ?????????????????????????????????????????????????? | | ?????????????????????????????????????????????????? | | ?????????????????????????????????????????????????? | | ?????????????????????????????????????????????????? | | ?????????????????????????????????????????????????? | | ?????????????????????????????????????????????????? | | ?????????????????????????????????????????????????? | | ?????????????????????????????????################# | | ?????????????????????????????????# # # """ | | ?????????????????????????????????# # # """ | | ?????????????????????????????????# # # """ | | ?????????????????????????????????# """ + + | | ?????????????????????????????????# """ # # | | ?????????????????????????????????# """ # # | | ?????????????????????????????????######## ###### | | ?????????????????????????????????# # #? [[ | | ?????????????????????????????????# """ # # [[ | | ?????????????????????????????????# """ # # [[ | | ?????????????????????????????????# """ + + | | ????????????????????????????????## # # | | ??????????????????????????????? # # | | ??????????????????????????##?? #### ###### | | ???????????############### ## ### ##### | | ?????????? *%k[![* %[!= [%* | | ?????????? =![%[%!% [%u * % T | | ?????????? % [[[a*!*%!@== % | | ?????????????????####### s # ### ##### | | ???????????????????????# = #??# ###+###???? | | ???????????????????????## ##??#"" # ????? | | ????????????????????????## ##???#"T # """"""??? | | ?????????????????????????# #????#"" # """"""" ? | | ?????????????????????????# #????# # """"""" # | | ?????????????????????????# #????# # """""""?? | | ?????????????????????????# #????######## """""???? | | ?????????????????????????? #???????????# ????????? | | ?????????????????????????? ???????????# ????????? | | ?????????????????????????? ?????????????????????? | | ?????????????????????????? ?????????????????????? | | ??????????????????????????[ ????????""???""T""???? | | ?????????????????????????? ????????T"???"""""???? | | ?????????????????????????? ????????""???????????? | | ?????????????????????????????????????????????????? | | ?????????????????????????????????????????????????? | | ?????????????????????????????????????????????????? | | ?????????????????????????????????????????????????? | | ?????????????????????????????????????????????????? | | ?????????????????????????????????????????????????? | | ?????????????????????????????????????????????????? | | ?????????????????????????????????????????????????? | | ?????????????????????????????????????????????????? | +----------------------------------------------------+ Best States ------------- Heat Dissipation 28 Energy Generation 10 Energy Capacity 125 Matter Stores 300 Matter Capacity 300 Sight Range 16 Terrain Scan Density 10 Evasion (%) 40 Recoil Reduction 2 Item Schematics ----------------- None Robot Schematics ------------------ None Fabricated ------------ Nothing Repaired ---------- Nothing Alien Tech Used ----------------- None Achievements -------------- None Challenges ------------ None Game ------ Seed GreatJunkBeamcaster Manual? 0 Play Time 00:14:35 Cumulative 144.8 hours Start 2025.06.30 @ 03:24:41 End 2025.06.30 @ 03:40:54 Sessions 1 Manual Loads 0 Difficulty Rogue Special Mode None Game No. 144 Rogue 144 Adventurer 0 Explorer 0 Win Type - Total 9 Types 5/0/2/2/0/0/0/0/0/0 Lore% 64 Gallery% 60 Achievement% 58 Wizard Run 0 Options --------- Layout 1 ASCII 0 Keyboard 0 Movement Numpad Keybinds 0 Fullscreen 1 Font 32/SmallcapsGlow Map View 77x35 Zoom Use 0% Tactical HUD 1 Map Filters NONE Filters NONE Steam 1 RUN: fad682f5-8a36-4d7d-a265-582f78ace3cf